[Event "Cape Verde Championship Final 2022"]
[Site "Praia"]
[Date "2022.12.10"]
[Round "4.3"]
[White "Vaz, Jose Carlos"]
[Black "Monteiro, Antonio David Cabral"]
[Result "1/2-1/2"]
[ECO "B30"]
[WhiteElo "1787"]
[BlackElo "1778"]
[Annotator "NA RC COMBH"]
[PlyCount "96"]
[EventDate "2022.12.04"]
[EventType "tourn"]
[EventCountry "KAP"]
[SourceTitle "playchess.com"]
[Source "ChessBase"]
[SourceQuality "1"]
[TimeControl "40/5400+30:1800+30"]

1. e4 {[%emt 0:14:39]} c5 {[%emt 0:02:11]} 2. Nf3 {[%emt 0:00:23]} Nc6 {[%emt 0:00:21]} 3. Bc4 {[%emt 0:00:11]} e6 {[%emt 0:00:32]} 4. O-O {[%emt 0:00:22]} d6 {[%emt 0:00:31]} 5. c3 {[%emt 0:00:19]} Nf6 {[%emt 0:00:16]} 6. Re1 {[%emt 0:00:11]} Be7 {[%emt 0:00:10]} 7. d4 {[%emt 0:00:18]} O-O {[%emt 0:00:43]} 8. d5 {[%emt 0:00:27]} exd5 {[%emt 0:00:40]} 9. exd5 {[%emt 0:00:14]} Nb8 {[%emt 0:00:45]} 10. Bg5 {[%emt 0:00:35]} Bg4 {[%emt 0:00:46]} 11. Qe2 {[%emt 0:00:53]} Bxf3 {[%emt 0:00:57]} 12. gxf3 {[%emt 0:00:04]} Re8 {[%emt 0:00:52]} 13. Bxf6 {[%emt 0:00:04]} gxf6 {[%emt 0:00:03]} 14. Qe4 {[%emt 0:00:52]} Nd7 {[%emt 0:01:43]} 15. Bb5 {[%emt 0:03:54]} a6 {[%emt 0:00:53]} 16. Bd3 {[%emt 0:03:33]} f5 {[%emt 0:00:38]} 17. Qxf5 {[%emt 0:00:44]} Nf6 {[%emt 0:00:51]} 18. Nd2 {[%emt 0:00:07]} Qd7 {[%emt 0:03:04]} 19. Qg5+ {[%emt 0:00:20]} Kh8 {[%emt 0:05:13]} 20. Kh1 {[%emt 0:00:34]} Rg8 {[%emt 0:03:10]} 21. Qh6 {[%emt 0:00:19]} Rg7 {[%emt 0:02:07]} 22. Rg1 {[%emt 0:00:17]} Rag8 {[%emt 0:00:30]} 23. Rxg7 {[%emt 0:00:13]} Rxg7 {[%emt 0:00:03]} 24. Rg1 {[%emt 0:00:10]} Rxg1+ {[%emt 0:01:03]} 25. Kxg1 {[%emt 0:00:04]} Qe8 {[%emt 0:03:17]} 26. c4 {[%emt 0:01:50]} Qg8+ {[%emt 0:00:20]} 27. Kf1 {[%emt 0:00:33]} Qg7 {[%emt 0:00:26]} 28. Qe3 {[%emt 0:00:13]} Bf8 {[%emt 0:01:31]} 29. a3 {[%emt 0:00:51]} Qh6 {[%emt 0:00:23]} 30. b4 {[%emt 0:02:09]} cxb4 {[%emt 0:01:18]} 31. axb4 {[%emt 0:00:04]} Qxh2 {[%emt 0:01:45]} 32. Ke2 {[%emt 0:00:14]} Nh5 {[%emt 0:03:41]} 33. Ke1 {[%emt 0:00:21]} Nf4 {[%emt 0:04:36]} 34. Bf1 {[%emt 0:00:47]} Qh6 {[%emt 0:05:34]} 35. Ne4 {[%emt 0:01:26]} Qh4 {[%emt 0:07:14]} 36. Ng3 {[%emt 0:00:24]} Qf6 {[%emt 0:01:07]} 37. Qc1 {[%emt 0:05:35]} Bh6 {[%emt 0:02:49]} 38. Ne4 {[%emt 0:01:35]} Qe5 {[%emt 0:04:28]} 39. Qc3 {[%emt 0:02:28]} Bg7 {[%emt 0:01:59]} 40. Qxe5 {[%emt 0:00:52]} Bxe5 {[%emt 0:00:04]} 41. Kd2 {[%emt 0:30:07]} b6 {[%emt 0:30:32]} 42. c5 {[%emt 0:03:02]} bxc5 {[%emt 0:01:40]} 43. bxc5 {[%emt 0:00:09]} dxc5 {[%emt 0:01:13]} 44. d6 {[%emt 0:00:19]} Ne6 {[%emt 0:05:26]} 45. Bxa6 {[%emt 0:00:34]} f5 {[%emt 0:06:22]} 46. Ng3 {[%emt 0:00:13]} Bxd6 {[%emt 0:00:19]} 47. Nxf5 {[%emt 0:00:04]} Bf8 {[%emt 0:00:39]} 48. Bc4 {[%emt 0:00:08]} Nd4 {[%emt 0:29:45]} 1/2-1/2

[Event "Cape Verde Championship Final 2022"]
[Site "Praia"]
[Date "2022.12.10"]
[Round "4.4"]
[White "Monteiro, Antonio David Cabral"]
[Black "Teixeira, Gil"]
[Result "1-0"]
[ECO "D00"]
[WhiteElo "1778"]
[BlackElo "1763"]
[Annotator "NA RC COMBH"]
[PlyCount "109"]
[EventDate "2022.12.04"]
[EventType "tourn"]
[EventCountry "KAP"]
[SourceTitle "playchess.com"]
[Source "ChessBase"]
[SourceQuality "1"]
[TimeControl "40/5400+30:1800+30"]

1. d4 {[%emt 0:00:10]} e6 {[%emt 0:00:14]} 2. Bf4 {[%emt 0:00:19]} Be7 {[%emt 0:00:10]} 3. e3 {[%emt 0:00:29]} Nf6 {[%emt 0:00:31]} 4. Nd2 {[%emt 0:00:35]} d5 {[%emt 0:00:17]} 5. c3 {[%emt 0:00:44]} Nbd7 {[%emt 0:00:12]} 6. Bd3 {[%emt 0:00:31]} Nf8 {[%emt 0:00:38]} 7. h4 {[%emt 0:05:43]} Bd6 {[%emt 0:00:45]} 8. Qf3 {[%emt 0:04:53]} Bd7 {[%emt 0:00:54]} 9. Bxd6 {[%emt 0:03:13]} cxd6 {[%emt 0:00:12]} 10. Qg3 {[%emt 0:02:01]} Qe7 {[%emt 0:01:00]} 11. Ngf3 {[%emt 0:04:41]} h6 {[%emt 0:00:41]} 12. e4 {[%emt 0:01:55]} dxe4 {[%emt 0:00:21]} 13. Nxe4 {[%emt 0:00:29]} Nxe4 {[%emt 0:00:33]} 14. Bxe4 {[%emt 0:00:16]} d5 {[%emt 0:01:48]} 15. Bd3 {[%emt 0:01:08]} Rg8 {[%emt 0:01:21]} 16. Ne5 {[%emt 0:06:51]} O-O-O {[%emt 0:00:58]} 17. Nxd7 {[%emt 0:04:01]} Rxd7 {[%emt 0:00:14]} 18. O-O-O {[%emt 0:01:27]} Qd6 {[%emt 0:00:17]} 19. f4 {[%emt 0:02:34]} Rc7 {[%emt 0:00:38]} 20. Kb1 {[%emt 0:58:30]} g5 {[%emt 0:01:07]} 21. hxg5 {[%emt 0:00:00]} hxg5 {[%emt 0:00:32]} 22. Rdf1 {[%emt 0:00:00]} f5 {[%emt 0:00:21]} 23. Rh6 {[%emt 0:00:00]} Rcg7 {[%emt 0:00:45]} 24. Qe1 {[%emt 0:00:00]} Rg6 {[%emt 0:00:14]} 25. fxg5 {[%emt 0:00:00]} Rxg5 {[%emt 0:01:14]} 26. Bxf5 {[%emt 0:00:00]} Qg3 {[%emt 0:01:42]} 27. Bxe6+ {[%emt 0:00:00]} Nxe6 {[%emt 0:01:06]} 28. Qxe6+ {[%emt 0:00:00]} Kb8 {[%emt 0:00:12]} 29. Rhf6 {[%emt 0:00:00]} a6 {[%emt 0:00:36]} 30. Qb6 {[%emt 0:00:00]} Re8 {[%emt 0:02:29]} 31. Rf7 {[%emt 0:00:00]} Re1+ {[%emt 0:03:23]} 32. Rxe1 {[%emt 0:00:00]} Qxe1+ {[%emt 0:00:35]} 33. Kc2 {[%emt 0:00:00]} Qe2+ {[%emt 0:01:06]} 34. Kb3 {[%emt 0:00:00]} Qc4+ {[%emt 0:00:31]} 35. Ka3 {[%emt 0:00:00]} Qc8 {[%emt 0:00:14]} 36. Qd6+ {[%emt 0:00:00]} Ka7 {[%emt 0:00:33]} 37. Rf8 {[%emt 0:00:00]} Qc6 {[%emt 0:02:37]} 38. Qb8+ {[%emt 0:00:00]} Kb6 {[%emt 0:00:11]} 39. Qd8+ {[%emt 0:00:00]} Ka7 {[%emt 0:00:11]} 40. Qxg5 {[%emt 0:00:00]} Qd6+ {[%emt 0:00:23]} 41. b4 {[%emt 0:28:36]} Qxf8 {[%emt 0:30:16]} 42. Qxd5 {[%emt 0:00:28]} Qf1 {[%emt 0:00:12]} 43. Qf3 {[%emt 0:03:40]} Qc1+ {[%emt 0:00:33]} 44. Kb3 {[%emt 0:00:57]} Qb1+ {[%emt 0:00:26]} 45. Kc4 {[%emt 0:00:14]} Qxa2+ {[%emt 0:00:09]} 46. Kc5 {[%emt 0:02:17]} Qa4 {[%emt 0:00:22]} 47. d5 {[%emt 0:00:53]} Qb5+ {[%emt 0:00:25]} 48. Kd4 {[%emt 0:00:45]} Qb6+ {[%emt 0:00:13]} 49. Ke5 {[%emt 0:01:02]} Qc7+ {[%emt 0:00:45]} 50. d6 {[%emt 0:00:23]} Qg7+ {[%emt 0:00:38]} 51. Qf6 {[%emt 0:01:35]} Qxg2 {[%emt 0:00:36]} 52. d7 {[%emt 0:01:22]} Qe2+ {[%emt 0:01:24]} 53. Kd6 {[%emt 0:00:50]} Qh2+ {[%emt 0:00:44]} 54. Qe5 {[%emt 0:01:36]} Qh4 {[%emt 0:02:34]} 55. Qd4+ {[%emt 0:00:31]} 1-0

[Event "Cape Verde Championship Final 2022"]
[Site "Praia"]
[Date "2022.12.10"]
[Round "5.1"]
[White "Teixeira, Gil"]
[Black "Ortega Amarelle, Mariano"]
[Result "0-1"]
[ECO "B30"]
[WhiteElo "1763"]
[BlackElo "2471"]
[Annotator "TA"]
[PlyCount "64"]
[EventDate "2022.12.04"]
[EventType "tourn"]
[EventCountry "KAP"]
[SourceTitle "playchess.com"]
[Source "ChessBase"]
[SourceQuality "1"]
[TimeControl "40/5400+30:1800+30"]

{[%evp 9,63,-33,-29,-29,-29,-27,-22,-37,-38,-43,-43,-47,-43,-43,-43,-34,-35,-67,-50,-63,-39,-75,-75,-81,-74,-77,-55,-92,-60,-92,-92,-96,-101,-139,-112,-174,-143,-212,-213,-227,-193,-289,-272,-278,-308,-291,-277,-616,-551,-814,-468,-29993,-29989,-29988,-2229,-29999]} 1. e4 {[%emt 0:09:27]} c5 {[%emt 0:00:08]} 2. c4 {[%emt 0:00:10]} Nc6 {[%emt 0:00:10]} 3. Nf3 {[%emt 0:00:09]} g6 {[%emt 0:00:22]} 4. Na3 {[%emt 0:00:20]} Bg7 {[%emt 0:00:10]} 5. Be2 {[%emt 0:00:29] [#]} Nf6 $146 {[%emt 0:00:15]} ({Predecessor:} 5... d6 6. Nc2 Nf6 7. d3 O-O 8. O-O a6 9. Rb1 b5 10. Bg5 bxc4 11. Bxf6 Bxf6 12. dxc4 {0-1 (48) Alard,F-Armao,O (1800) France 1997}) 6. d3 {[%emt 0:00:14] B30: Sicilian: 2...Nc6 3 Bb5, lines without ...g6.} d6 {[%emt 0:00:18]} 7. O-O {[%emt 0:00:22]} O-O {[%emt 0:00:07]} 8. h3 {[%emt 0:00:12] The position is equal.} a6 {[%emt 0:00:39]} 9. Bd2 {[%emt 0:00:44]} Rb8 {[%emt 0:00:14]} 10. Rb1 {[%emt 0:00:12]} b5 {[%emt 0:01:08]} 11. b3 {[%emt 0:00:24]} Ne8 {[%emt 0:01:39][%cal Bf6e8,Be8c7,Bc7e6,Be6d4,Bd4c2][%mdl 32]} 12. Nc2 {[%emt 0:00:35]} Nc7 {[%emt 0:01:39]} 13. Ne3 {[%emt 0:01:02]} Ne6 {[%emt 0:02:25]} 14. Re1 {[%emt 0:00:48]} Ned4 {[%emt 0:07:49]} 15. Nc2 {[%emt 0:02:10]} Nxc2 {[%emt 0:13:50]} 16. Qxc2 {[%emt 0:03:40]} b4 {[%emt 0:00:20]} 17. Be3 {[%emt 0:00:44]} f5 {[%emt 0:00:14]} 18. Bc1 {[%emt 0:02:04] White is now going downhill.} Rb7 {[%emt 0:07:56]} 19. Bb2 {[%emt 0:02:37]} Bxb2 {[%emt 0:00:24]} 20. Qxb2 {[%emt 0:00:17]} e5 {[%emt 0:00:09]} 21. Qd2 {[%emt 0:00:44]} Rg7 {[%emt 0:06:00]} 22. Kh1 {[%emt 0:04:02]} (22. Qg5 $17) 22... g5 {[%emt 0:07:47][%cal Bg6g5,Bg5g4][%mdl 32] Hoping for ...g4.} 23. Nh2 {[%emt 0:01:44] [#]} (23. exf5 $17 Rxf5 24. Qe3) 23... g4 $1 $19 {[%emt 0:05:58]} 24. exf5 {[%emt 0:06:00]} gxh3 {[%emt 0:00:54]} ({Weaker is} 24... Bxf5 25. Bxg4 Bxg4 26. Nxg4 $15) 25. g4 {[%emt 0:00:42]} (25. Bf3 $142 hxg2+ 26. Bxg2) 25... Nd4 {[%emt 0:00:09]} 26. Qh6 {[%emt 0:03:45]} Bb7+ {[%emt 0:03:45]} 27. f3 {[%emt 0:00:17]} Qg5 {[%emt 0:10:45] Really sharp! Active counter play!} 28. Qxh3 {[%emt 0:02:55]} (28. Qxg5 Rxg5 29. Bf1) 28... Rf6 {[%emt 0:04:08]} 29. Bd1 {[%emt 0:00:45]} Rh6 {[%emt 0:01:07]} 30. Qf1 {[%emt 0:01:55]} (30. Qg2 $19) 30... Rxh2+ {[%emt 0:05:45][%mdl 64]} 31. Kxh2 {[%emt 0:00:23]} Qh4+ {[%emt 0:00:08]} (31... Qf4+ $142 32. Kh3 {[#]} Nxf5 $1 {[%mdl 512]} 33. Qg1 Qh6+ 34. Kg2 Rxg4+ 35. Kf1 Qh3+ 36. Kf2 Qh4+ 37. Ke2 Bxf3+ 38. Kd2 Qg5+ 39. Kc2 Rxg1 40. Rxg1 Qxg1 41. Be2 Qf2 42. Rg1+ Qxg1 43. Bxf3 Nd4+ 44. Kd2 Qf2+ 45. Kd1 Nxf3 46. Kc1 Qxa2 47. d4 exd4 48. Kd1 Qd2#) 32. Kg2 {[%emt 0:00:51]} Rxg4# {[%emt 0:00:16] Weighted Error Value: White=0.93/Black=0.50} 0-1

[Event "Cape Verde Championship Final 2022"]
[Site "Praia"]
[Date "2022.12.10"]
[Round "5.2"]
[White "Monteiro, Antonio David Cabral"]
[Black "Monteiro, Antonio David Cabral"]
[Result "0-1"]
[ECO "C05"]
[WhiteElo "1778"]
[BlackElo "1778"]
[Annotator "NA RC COMBH"]
[PlyCount "46"]
[EventDate "2022.12.04"]
[EventType "tourn"]
[EventCountry "KAP"]
[SourceTitle "playchess.com"]
[Source "ChessBase"]
[SourceQuality "1"]
[TimeControl "40/5400+30:1800+30"]

1. e4 {[%emt 0:09:52]} e6 {[%emt 0:01:03]} 2. d4 {[%emt 0:00:02]} d5 {[%emt 0:00:07]} 3. Nd2 {[%emt 0:00:07]} Nf6 {[%emt 0:00:19]} 4. e5 {[%emt 0:00:36]} Nfd7 {[%emt 0:00:12]} 5. Ngf3 {[%emt 0:01:14]} c5 {[%emt 0:00:26]} 6. c3 {[%emt 0:03:08]} Nc6 {[%emt 0:00:11]} 7. Be2 {[%emt 0:00:46]} cxd4 {[%emt 0:01:06]} 8. cxd4 {[%emt 0:00:07]} Qb6 {[%emt 0:01:16]} 9. Nb3 {[%emt 0:02:25]} a5 {[%emt 0:01:27]} 10. a4 {[%emt 0:00:27]} Bb4+ {[%emt 0:00:45]} 11. Bd2 {[%emt 0:00:16]} Bxd2+ {[%emt 0:02:34]} 12. Kxd2 {[%emt 0:05:53]} Qb4+ {[%emt 0:03:07]} 13. Kc2 {[%emt 0:01:41]} O-O {[%emt 0:01:28]} 14. Qd2 {[%emt 0:00:41]} Qe7 {[%emt 1:23:29]} 15. Rhc1 {[%emt 1:10:45]} f6 {[%emt 0:00:00]} 16. exf6 {[%emt 0:00:00]} Rxf6 {[%emt 0:00:00]} 17. Kd1 {[%emt 0:00:00]} Nb4 {[%emt 0:00:00]} 18. Ke1 {[%emt 0:00:00]} e5 {[%emt 0:00:00]} 19. dxe5 {[%emt 0:00:00]} Nxe5 {[%emt 0:00:00]} 20. Kf1 {[%emt 0:00:00]} Nxf3 {[%emt 0:00:00]} 21. Bxf3 {[%emt 0:00:00]} Rxf3 {[%emt 0:00:00]} 22. gxf3 {[%emt 0:00:00]} Bh3+ {[%emt 0:00:00]} 23. Kg1 {[%emt 0:00:00]} Qf6 {[%emt 0:00:00]} 0-1

[Event "Cape Verde Championship Final 2022"]
[Site "Praia"]
[Date "2022.12.11"]
[Round "5.3"]
[White "Rodriguez Guevara, Celia M."]
[Black "Vaz, Jose Carlos"]
[Result "0-1"]
[ECO "B44"]
[WhiteElo "1803"]
[BlackElo "1787"]
[Annotator "NA RC COMBH"]
[PlyCount "122"]
[EventDate "2022.12.04"]
[EventType "tourn"]
[EventCountry "KAP"]
[SourceTitle "playchess.com"]
[Source "ChessBase"]
[SourceQuality "1"]
[TimeControl "40/5400+30:1800+30"]

1. e4 {[%emt 0:09:27]} c5 {[%emt 0:00:45]} 2. Nf3 {[%emt 0:00:13]} Nc6 {[%emt 0:00:45]} 3. d4 {[%emt 0:01:03]} cxd4 {[%emt 0:00:18]} 4. Nxd4 {[%emt 0:00:28]} e6 {[%emt 0:00:12]} 5. Bb5 {[%emt 0:01:34]} Bc5 {[%emt 0:00:50]} 6. Nxc6 {[%emt 0:06:40]} bxc6 {[%emt 0:00:41]} 7. Bd3 {[%emt 0:00:39]} Ne7 {[%emt 0:00:34]} 8. O-O {[%emt 0:00:48]} O-O {[%emt 0:00:25]} 9. Qh5 {[%emt 0:02:07]} Bb6 {[%emt 0:00:54]} 10. e5 {[%emt 0:06:57]} Ng6 {[%emt 0:00:24]} 11. Bg5 {[%emt 0:05:15]} Qc7 {[%emt 0:01:20]} 12. Be7 {[%emt 0:04:35]} Re8 {[%emt 0:00:55]} 13. Bd6 {[%emt 0:00:04]} Qb7 {[%emt 0:00:14]} 14. Nd2 {[%emt 0:01:52]} Bd8 {[%emt 0:00:19]} 15. Ne4 {[%emt 0:00:33]} Qxb2 {[%emt 0:00:54]} 16. c3 {[%emt 0:01:20]} Qb6 {[%emt 0:00:46]} 17. Ng5 {[%emt 0:28:31]} Bxg5 {[%emt 0:00:45]} 18. Qxg5 {[%emt 0:00:06]} Ba6 {[%emt 0:00:27]} 19. Rfb1 {[%emt 0:07:14]} Qa5 {[%emt 0:01:05]} 20. Bb4 {[%emt 0:00:28]} Qa4 {[%emt 0:00:34]} 21. Be4 {[%emt 0:01:25]} Rac8 {[%emt 0:00:43]} 22. Bxg6 {[%emt 0:11:06]} fxg6 {[%emt 0:01:37]} 23. Bd6 {[%emt 0:01:12]} Qe4 {[%emt 0:00:28]} 24. Rb4 {[%emt 0:03:19]} Qf5 {[%emt 0:00:30]} (24... Qd3 $11) 25. Qe3 {[%emt 0:00:52]} Ra8 {[%emt 0:01:11]} 26. Ra4 {[%emt 0:00:27]} Qd3 {[%emt 0:01:11]} 27. Qc1 {[%emt 0:02:58]} Bc4 {[%emt 0:00:38]} 28. Rb4 {[%emt 0:00:59]} a5 {[%emt 0:00:45]} 29. Rb7 {[%emt 0:00:03]} Red8 {[%emt 0:01:03]} 30. a4 {[%emt 0:00:13]} Ba6 {[%emt 0:00:43]} 31. Rb2 {[%emt 0:01:12]} Qf5 {[%emt 0:01:53]} 32. Rd2 {[%emt 0:00:34]} c5 {[%emt 0:00:48]} 33. c4 {[%emt 0:01:07]} (33. Be7 $11 {might be stronger.}) 33... Bb7 {[%emt 0:00:22]} 34. Rb1 {[%emt 0:01:02]} Bc6 {[%emt 0:00:16]} 35. Ra1 {[%emt 0:00:59]} Qg5 {[%emt 0:00:12]} 36. f3 {[%emt 0:00:36]} h5 {[%emt 0:00:59]} 37. Qe1 {[%emt 0:00:05]} h4 {[%emt 0:01:08]} 38. Kh1 {[%emt 0:00:55]} h3 {[%emt 0:00:17]} 39. Qf2 {[%emt 0:00:09]} Rdc8 {[%emt 0:01:31]} 40. Rd3 {[%emt 0:00:47]} Ra7 {[%emt 0:00:44]} 41. Rg1 {[%emt 0:30:24]} Qf5 {[%emt 0:31:14]} 42. Ra3 {[%emt 0:00:00]} hxg2+ {[%emt 0:00:00]} 43. Rxg2 {[%emt 0:00:00]} (43. Qxg2 $142 Rb7 44. Rc3) 43... Rb7 {[%emt 0:00:00]} 44. Rg1 {[%emt 0:00:00]} Kf7 {[%emt 0:00:00]} 45. Qg3 {[%emt 0:00:00]} Rh8 {[%emt 0:00:00]} 46. Qg4 {[%emt 0:00:00]} Rh5 {[%emt 0:00:00]} 47. Qxf5+ {[%emt 0:03:42]} gxf5 {[%emt 0:00:00]} (47... Rxf5 $2 {perishes.} 48. Rg3 $19) 48. Bxc5 {[%emt 0:00:00]} g5 {[%emt 0:00:00]} 49. Rg3 {[%emt 0:00:00]} g4 {[%emt 0:00:00]} 50. Kg1 {[%emt 0:00:00]} Rb1+ {[%emt 0:00:00]} 51. Kf2 {[%emt 0:00:00]} Rxh2+ {[%emt 0:00:00]} 52. Ke3 {[%emt 0:00:00]} Bxf3 {[%emt 0:00:00]} (52... gxf3 $142 53. Kf4 f2 54. Bxf2 Rxf2+ 55. Ke3 Rc2) 53. Bd4 {[%emt 0:01:01]} Bc6 {[%emt 0:00:00]} (53... Re1+ $142 54. Kf4 Re4+ 55. Kg5 Rxd4 56. Rc3 Rh8 57. Rc2 Rg8+ 58. Kh5 f4 59. Kh4 Rh8+ 60. Kg5 fxg3 61. Rg2 Bxg2 62. c5 Rd3 63. c6 dxc6 64. Kf4 Kg6 65. Kxg4 Rh7 66. Kf4 Rh4#) 54. Bc3 {[%emt 0:00:12]} Rh3 $19 {[%emt 0:00:00]} 55. Rxh3 {[%emt 0:00:50]} gxh3 {[%emt 0:00:00]} 56. Ra2 {[%emt 0:00:39]} Bg2 {[%emt 0:00:00]} 57. Bxa5 {[%emt 0:01:45]} h2 {[%emt 0:00:00]} 58. Rd2 {[%emt 0:00:31]} h1=Q {[%emt 0:00:00]} 59. Rxd7+ {[%emt 0:00:04]} Kg6 {[%emt 0:00:00]} 60. Re7 {[%emt 0:00:53]} Qg1+ {[%emt 0:00:00]} 61. Kd3 {[%emt 0:00:33]} Be4+ {[%emt 0:00:00]} 0-1

[Event "Cape Verde Championship Final 2022"]
[Site "Praia"]
[Date "2022.12.11"]
[Round "5.4"]
[White "Moes Joaquim, Carlos"]
[Black "Barros, Luis"]
[Result "0-1"]
[ECO "D53"]
[WhiteElo "1448"]
[BlackElo "1666"]
[Annotator "NA RC COMBH"]
[PlyCount "92"]
[EventDate "2022.12.04"]
[EventType "tourn"]
[EventCountry "KAP"]
[SourceTitle "playchess.com"]
[Source "ChessBase"]
[SourceQuality "1"]
[TimeControl "40/5400+30:1800+30"]

1. d4 {[%emt 0:16:20]} Nf6 {[%emt 0:00:28]} 2. c4 {[%emt 0:00:15]} d5 {[%emt 0:00:29]} 3. Nc3 {[%emt 0:00:09]} e6 {[%emt 0:00:18]} 4. Nf3 {[%emt 0:00:20]} c5 {[%emt 0:00:33]} 5. Bg5 {[%emt 0:01:22]} Be7 {[%emt 0:00:46]} 6. e3 {[%emt 0:00:13]} Nc6 {[%emt 0:00:23]} 7. Be2 {[%emt 0:01:34]} Qb6 {[%emt 0:01:24]} 8. Rb1 {[%emt 0:07:08]} h6 {[%emt 0:00:36]} 9. Bxf6 {[%emt 0:00:52]} Bxf6 {[%emt 0:00:19]} 10. cxd5 {[%emt 0:00:28]} cxd4 {[%emt 0:01:05]} 11. dxc6 {[%emt 0:07:33]} dxc3 {[%emt 0:00:55]} 12. cxb7 {[%emt 0:01:38]} Bxb7 {[%emt 0:02:30]} 13. O-O {[%emt 0:00:19]} cxb2 {[%emt 0:00:36]} 14. Qa4+ {[%emt 0:01:38]} Bc6 {[%emt 0:00:25]} 15. Qa3 {[%emt 0:01:36]} Rb8 {[%emt 0:07:18]} 16. Nd2 {[%emt 0:00:52]} Be7 {[%emt 0:01:43]} 17. Qc3 {[%emt 0:01:52]} O-O {[%emt 0:02:54]} 18. Nc4 {[%emt 0:00:01]} Qc5 {[%emt 0:01:21]} 19. Rfe1 {[%emt 0:11:31]} Rfd8 {[%emt 0:00:40]} 20. Bf1 {[%emt 0:06:50]} Be4 {[%emt 0:00:34]} 21. Rxb2 {[%emt 0:03:59]} Bf6 {[%emt 0:04:05]} 22. Rxb8 {[%emt 0:00:07]} Bxc3 {[%emt 0:01:19]} 23. Rxd8+ {[%emt 0:00:06]} Kh7 {[%emt 0:00:38]} 24. Red1 {[%emt 0:00:39]} Bd5 {[%emt 0:00:54]} 25. Nd6 {[%emt 0:09:14]} Bf6 {[%emt 0:02:17]} 26. Rd7 {[%emt 0:05:33]} Qc6 {[%emt 0:00:01]} 27. Bb5 {[%emt 0:03:26]} Qc5 {[%emt 0:01:31]} 28. Bf1 {[%emt 0:01:50]} a6 {[%emt 0:02:13]} 29. Bxa6 {[%emt 0:01:00]} Qa5 {[%emt 0:04:11]} 30. Bd3+ {[%emt 0:01:21]} Kg8 {[%emt 0:00:52]} 31. Rc1 {[%emt 0:03:27]} Bc3 {[%emt 0:01:27]} 32. Rb1 {[%emt 0:01:52]} Qa8 {[%emt 0:01:02]} 33. f3 {[%emt 0:02:28]} g5 {[%emt 0:02:39]} 34. Nxf7 {[%emt 0:03:06]} Ba5 {[%emt 0:10:17]} 35. Nxh6+ {[%emt 0:00:23]} Kf8 {[%emt 0:00:39]} 36. Rf7+ {[%emt 0:00:54]} Ke8 {[%emt 0:01:24]} 37. Bb5+ {[%emt 0:00:41]} Bc6 {[%emt 0:00:30]} 38. a4 {[%emt 0:00:45]} Bb6 {[%emt 0:01:31]} 39. Kf2 {[%emt 0:00:13]} Bxb5 {[%emt 0:03:13]} 40. Rxb5 {[%emt 0:00:26]} Qc6 {[%emt 0:00:10]} 41. Rxg5 {[%emt 0:30:15]} Bxe3+ {[%emt 0:31:13]} 42. Kxe3 {[%emt 0:04:28]} Qc1+ {[%emt 0:00:11]} 43. Kf2 {[%emt 0:00:13]} Qxg5 {[%emt 0:00:31]} 44. Rh7 {[%emt 0:00:06]} Qh4+ {[%emt 0:01:19]} 45. Kf1 {[%emt 0:01:21]} Qc4+ {[%emt 0:00:31]} 46. Kf2 {[%emt 0:00:21]} Qc2+ {[%emt 0:00:14]} 0-1

[Event "Cape Verde Championship Final 2022"]
[Site "Praia"]
[Date "2022.12.11"]
[Round "6.1"]
[White "Ortega Amarelle, Mariano"]
[Black "Barros Gutierrez, Angel Luis"]
[Result "1-0"]
[ECO "B03"]
[WhiteElo "2471"]
[BlackElo "2051"]
[Annotator "TA"]
[PlyCount "63"]
[EventDate "2022.12.04"]
[EventType "tourn"]
[EventCountry "KAP"]
[SourceTitle "playchess.com"]
[Source "ChessBase"]
[SourceQuality "1"]
[TimeControl "40/5400+30:1800+30"]

{[%evp 9,63,113,115,108,158,156,444,440,593,246,255,259,261,163,172,122,128,126,165,168,202,187,186,191,239,235,273,295,302,297,383,310,383,359,387,387,384,355,398,396,520,518,531,526,735,740,822,808,815,800,2174,1927,29989,29990,29995,29988]} 1. e4 {[%emt 0:00:07][%cal Be2e4,Be4e5][%mdl 32]} Nf6 {[%emt 0:14:37]} 2. e5 {[%emt 0:00:55]} Nd5 {[%emt 0:00:08]} 3. d4 {[%emt 0:00:08]} b5 {[%emt 0:00:17]} 4. Bxb5 {[%emt 0:01:13]} c5 {[%emt 0:00:18]} 5. Bc4 {[%emt 0:00:21]} Bb7 {[%emt 0:02:24]} 6. Nf3 {[%emt 0:06:25] [#] White is more active. B03: Alekhine's Defence: Four Pawns Attack.} Qa5+ $146 {[%emt 0:02:39]} (6... cxd4 $142 7. Qxd4 e6) ({Predecessor:} 6... e6 7. O-O Nb6 8. Be2 Be7 9. a4 a5 10. Nc3 O-O 11. Nb5 Nc6 12. dxc5 Bxc5 {1-0 (44) Girinath,P (2361)-Toncheva,N (2228) Chess.com INT 2022}) 7. Bd2 $16 {[%emt 0:02:04]} Nb4 $2 {[%emt 0:00:37] [#]} (7... Qc7 $16) 8. c3 $18 {[%emt 0:05:23] White is clearly winning.} Bxf3 {[%emt 0:01:34]} 9. cxb4 {[%emt 0:01:39]} ({Weaker is} 9. gxf3 N4c6 10. Qb3 e6 $18) (9. Bxf7+ $142 Kd8 10. Qxf3 (10. gxf3 Nd3+ 11. Kf1 Qa6 $16)) 9... Bxd1 {[%emt 0:01:14]} 10. bxa5 {[%emt 0:00:05]} Bc2 {[%emt 0:01:11]} 11. Bd5 {[%emt 0:12:20]} Nc6 {[%emt 0:01:30]} 12. Bxc6 {[%emt 0:00:46]} ({Better is} 12. dxc5 $18 e6 13. Bxc6 dxc6 14. Be3) 12... dxc6 $16 {[%emt 0:00:11]} 13. dxc5 {[%emt 0:00:05]} Bd3 {[%emt 0:01:03]} 14. Nc3 {[%emt 0:00:20]} e6 {[%emt 0:02:35]} 15. Be3 {[%emt 0:00:12]} Be7 {[%emt 0:02:54]} 16. O-O-O {[%emt 0:00:18][%cal Ba1d1,Bd1d2,Bd2d7][%mdl 32]} Bg6 {[%emt 0:00:47]} (16... O-O-O {might work better.} 17. Rd2 Bf5) 17. Rd2 $18 {[%emt 0:00:51]} O-O {[%emt 0:00:35]} 18. Rd7 {[%emt 0:00:13]} Bd8 {[%emt 0:01:52]} 19. b4 {[%emt 0:06:11]} a6 {[%emt 0:00:53]} 20. Rb7 {[%emt 0:03:40]} f6 {[%emt 0:01:01]} 21. Rd1 {[%emt 0:00:27][%cal Bh1d1,Bd1d7,Bd7b7,Bb7c7][%mdl 32]} Rf7 {[%emt 0:03:04]} 22. Rxf7 {[%emt 0:01:35]} Kxf7 {[%emt 0:01:44]} 23. Rd7+ {[%emt 0:00:10]} Kg8 {[%emt 0:01:14]} 24. Bf4 {[%emt 0:00:37]} Be8 {[%emt 0:04:38]} 25. Rb7 {[%emt 0:00:15]} g5 {[%emt 0:00:34]} 26. Be3 {[%emt 0:03:11]} Bg6 {[%emt 0:00:54]} 27. Na4 {[%emt 0:00:55]} Be4 {[%emt 0:02:02]} 28. Nb6 {[%emt 0:00:44]} Bxb6 {[%emt 0:00:52]} 29. axb6 {[%emt 0:00:09][%cal Ba5b6,Bb6b7][%mdl 32]} Rd8 {[%emt 0:03:52]} 30. Rc7 {[%emt 0:00:20] [#] White wants to mate with b7.} Rd3 {[%emt 0:00:38]} 31. b7 {[%emt 0:00:14]} Rc3+ {[%emt 0:00:58]} 32. Kd2 {[%emt 0:00:32] Weighted Error Value: White=0.40/Black=0.84} 1-0